bitfinex/quotes_ETHUSD_20251004
["timestamp","ask_amount","ask_price","bid_price","bid_amount"]
[1759599468743,0.002,4465.2,4465.0,0.02239641]
[1759599469553,0.002,4465.2,4465.1,0.47869591]
[1759599469949,0.002,4465.2,4465.1,5.21989149]
[1759599470149,0.002,4465.2,4465.1,3.61652889]
[1759599478711,0.002,4465.2,4465.1,5.87851629]
[1759599478915,0.002,4465.2,4465.1,5.85612038]
[1759599480991,0.002,4465.2,4465.1,8.25612038]
[1759599481197,0.002,4465.2,4465.1,8.5055542]
[1759599481692,0.002,4465.2,4465.1,8.59516003]
[1759599484161,0.002,4465.2,4465.1,8.34572621]
[1759599484742,0.002,4465.2,4465.1,22.84572621]
[1759599488349,0.002,4465.2,4465.1,20.32172621]
[1759599488550,0.002,4465.2,4465.1,22.84472621]
[1759599490573,0.002,4465.2,4465.1,35.28012421]
[1759599491082,0.002,4465.2,4465.1,44.76972221]
[1759599491243,0.002,4465.2,4465.1,44.16978321]
[1759599491439,0.002,4465.2,4465.1,43.76456721]
[1759599492088,0.002,4465.2,4465.1,44.71235521]
[1759599493043,0.002,4465.2,4465.1,45.15981021]
[1759599493356,0.002,4465.2,4465.1,45.40924403]
[1759599494293,0.002,4465.2,4465.1,50.83229603]
[1759599494441,0.002,4465.2,4465.1,50.87789603]
[1759599494642,0.002,4465.2,4465.1,50.01765103]
[1759599495685,0.002,4465.2,4465.1,51.13623503]
[1759599496192,0.002,4465.7,4465.6,2.23934073]
[1759599496398,0.002,4465.7,4465.6,7.6326092]
[1759599496547,0.002,4465.7,4465.6,8.0827158]
[1759599496754,0.002,4465.7,4465.6,22.6947158]
[1759599499148,0.002,4465.7,4465.6,5.48187507]
[1759599499360,0.002,4465.7,4465.6,2.634]
[1759599499361,0.4351,4465.7,4465.6,2.634]
[1759599499564,0.4351,4465.7,4465.6,2.522]
[1759599499796,0.4351,4465.7,4465.2,0.112]
[1759599500101,0.112,4465.5,4465.3,2.522]
[1759599500304,0.4331,4465.4,4465.1,2.522]
[1759599500463,0.112,4465.5,4465.1,2.522]
[1759599500464,0.4331,4465.3,4465.1,2.522]
[1759599500663,0.4331,4465.2,4465.1,2.522]
[1759599501698,0.5451,4465.2,4464.9,2.522]
[1759599501889,0.4331,4465.1,4464.9,2.522]
[1759599502084,0.112,4465.2,4464.9,2.522]
[1759599502405,0.4331,4465.0,4464.9,2.522]
[1759599502602,0.4331,4465.0,4464.6,0.001]
[1759599502805,0.112,4464.9,4464.8,2.522]
[1759599503106,0.5451,4464.9,4464.6,0.001]
[1759599503290,0.5451,4464.9,4464.6,2.523]
[1759599503599,0.4331,4464.8,4464.6,2.523]
[1759599503902,0.4331,4464.7,4464.6,2.523]
[1759599505869,0.4331,4464.7,4464.6,2.524]
[1759599506069,0.112,4464.9,4464.6,2.524]
[1759599506282,0.4331,4465.4,4464.7,0.02239792]
[1759599506492,0.112,4465.0,4464.7,0.02239792]
[1759599506676,0.112,4465.4,4464.8,0.5621]
[1759599506885,0.112,4465.4,4464.9,2.523]
[1759599507400,0.112,4465.4,4464.9,4.76266255]
[1759599507601,0.112,4465.4,4464.9,5.21276255]
[1759599508410,0.112,4465.4,4464.9,2.9731]
[1759599508567,0.112,4465.4,4464.9,2.523]
[1759599512213,0.112,4465.4,4464.9,2.9795]
[1759599515193,0.002,4465.7,4465.0,0.47889641]
[1759599515397,0.112,4465.6,4465.1,2.23959149]
[1759599515632,0.112,4465.6,4465.2,2.9795]
[1759599515907,0.112,4465.6,4465.3,2.26188535]
[1759599516120,0.112,4465.6,4465.3,2.71838535]
[1759599516392,0.002,4465.7,4465.5,2.23934157]
[1759599516627,0.002,4465.7,4465.6,2.5453934]
[1759599516933,0.002,4465.7,4465.6,5.24123413]
[1759599517136,0.002,4465.7,4465.6,5.21884073]
[1759599517334,0.002,4465.7,4465.6,2.9795]
[1759599517503,0.002,4465.7,4465.6,3.0018934]
[1759599518205,0.002,4465.7,4465.6,2.9795]
[1759599518834,0.002,4465.7,4465.6,2.523]
[1759599524644,0.002,4465.7,4465.6,2.9795]
[1759599525237,0.002,4465.7,4465.6,2.523]
[1759599526747,0.002,4465.7,4465.6,2.9795]
[1759599526944,0.002,4465.7,4465.6,3.0018934]
[1759599527149,0.002,4465.7,4465.6,3.59145538]
[1759599527525,0.002,4465.7,4465.6,3.11256198]
[1759599528235,0.002,4465.7,4465.6,2.523]
[1759599529946,0.002,4465.7,4465.6,2.9795]
[1759599531344,0.002,4465.7,4465.6,2.523]
[1759599539386,0.002,4465.7,4465.6,2.9884]
[1759599541503,0.002,4465.7,4465.3,0.112]
[1759599541701,0.002,4465.7,4465.1,0.001]
[1759599541702,0.4331,4465.6,4465.4,2.523]
[1759599541880,0.4331,4465.5,4465.4,2.523]
[1759599542763,0.4331,4465.5,4465.1,0.001]
[1759599543100,0.4331,4465.4,4465.1,0.001]
[1759599543308,2.35154134,4465.2,4465.1,0.001]
[1759599543799,2.78464134,4465.2,4465.1,0.001]
[1759599545625,0.5451,4465.2,4465.1,0.001]
[1759599546094,2.78464134,4465.2,4465.1,0.001]
[1759599546794,3.41824134,4465.2,4465.1,0.001]
[1759599548515,3.87654002,4465.2,4465.1,0.001]
[1759599552131,8.10654002,4465.2,4465.1,0.001]
[1759599552325,10.62954002,4465.2,4465.1,0.001]
[1759599552853,10.17124134,4465.2,4465.1,0.001]
[1759599554650,9.73814134,4465.2,4465.1,0.001]
[1759599556428,10.17124134,4465.2,4465.1,0.001]
[1759599556844,10.62636019,4465.2,4465.1,0.001]
[1759599557149,10.71600438,4465.2,4465.1,0.001]
[1759599558671,10.28290438,4465.2,4465.1,0.001]
[1759599560602,10.71600438,4465.2,4465.1,0.001]
[1759599560896,10.71800438,4465.2,4465.1,0.001]
[1759599561481,10.28490438,4465.2,4465.1,0.001]
[1759599561688,10.71800438,4465.2,4465.1,0.001]
[1759599564063,10.28490438,4465.2,4465.1,0.001]
[1759599568277,10.71800438,4465.2,4465.1,0.001]
[1759599569581,10.28490438,4465.2,4465.1,0.001]
[1759599571514,4.88876304,4465.2,4465.1,0.4349]
[1759599572513,7.12830438,4465.2,4465.1,0.4349]
[1759599573715,4.88876304,4465.2,4465.1,0.4349]
[1759599573915,4.79911885,4465.2,4465.1,0.4349]
[1759599574289,7.03866019,4465.2,4465.1,0.4349]
[1759599574718,4.344,4465.2,4465.1,0.4349]
[1759599575119,8.99454134,4465.2,4465.1,0.001]
[1759599576249,6.755,4465.2,4465.1,0.001]
[1759599576409,6.755,4465.2,4465.1,0.4349]
[1759599576603,8.99454134,4465.2,4465.1,0.4349]
[1759599577708,8.99454134,4465.2,4465.1,0.001]
[1759599577709,9.43940412,4465.2,4465.1,0.001]
[1759599578038,8.99454134,4465.2,4465.1,0.001]
[1759599578404,6.47154134,4465.2,4465.1,0.001]
[1759599578608,2.24154134,4465.2,4465.1,0.001]
[1759599579340,2.87514134,4465.2,4465.1,0.001]
[1759599579744,3.30904134,4465.2,4465.1,0.001]
[1759599581442,3.74687266,4465.2,4465.1,0.001]
[1759599584864,7.97687266,4465.2,4465.1,0.001]
[1759599585240,8.08887266,4465.2,4465.1,0.001]
[1759599585948,10.61187266,4465.2,4465.1,0.001]
[1759599590468,10.61187266,4465.2,4465.1,0.4349]
[1759599591750,8.08887266,4465.2,4465.1,0.001]
[1759599591955,10.61187266,4465.2,4465.1,0.4476]
[1759599592190,0.002,4465.2,4465.1,0.4476]
[1759599593379,0.002,4465.2,4465.1,0.71857026]
[1759599593956,0.002,4465.2,4465.1,0.4476]
[1759599602934,0.002,4465.2,4465.1,0.001]
[1759599603233,2.24154134,4465.2,4465.1,0.001]
[1759599603591,0.002,4465.2,4465.1,0.001]
[1759599604129,2.24154134,4465.2,4465.1,0.001]
[1759599605562,0.002,4465.2,4465.1,0.001]
[1759599605855,2.24154134,4465.2,4465.1,0.001]
[1759599606063,2.67464134,4465.2,4465.1,0.001]
[1759599607059,0.4351,4465.2,4465.1,0.001]
[1759599607247,2.24154134,4465.2,4465.1,0.001]
[1759599608846,0.002,4465.2,4465.1,0.001]
[1759599609892,2.24154134,4465.2,4465.1,0.001]
[1759599610061,0.002,4465.2,4465.1,0.001]
[1759599611544,4.232,4465.2,4465.1,0.001]
[1759599611746,6.47154134,4465.2,4465.1,0.001]
[1759599613589,4.232,4465.2,4465.1,0.001]
[1759599613750,6.47154134,4465.2,4465.1,0.001]
[1759599615391,4.232,4465.2,4465.1,0.001]
[1759599618871,6.47154134,4465.2,4465.1,0.001]
[1759599619270,4.232,4465.2,4465.1,0.001]
[1759599619512,4.232,4465.2,4465.1,0.4476]
[1759599620597,0.002,4465.2,4465.1,0.4476]
[1759599621786,8.05481711,4465.2,4465.1,0.001]
[1759599622121,8.06239126,4465.2,4465.1,0.001]
[1759599622323,3.75394134,4465.2,4465.1,0.001]
[1759599623929,4.20081951,4465.2,4465.1,0.001]
[1759599625641,3.76961951,4465.2,4465.1,0.001]
[1759599625839,3.6062,4465.2,4465.1,0.001]
[1759599626002,5.84574134,4465.2,4465.1,0.001]
[1759599630914,8.68545369,4465.2,4465.1,0.001]
[1759599631116,2.87339214,4464.7,4464.6,1e-08]
[1759599631416,5.27359283,4464.3,4463.1,0.01]
[1759599631619,12.96774959,4464.3,4463.1,0.01]
[1759599631826,13.50824959,4464.3,4463.1,0.01]
[1759599632409,13.95374959,4464.3,4463.1,0.01]
[1759599637273,13.95374959,4464.3,4463.1,0.4555]
[1759599640577,13.95374959,4464.3,4463.1,0.01]
[1759599640742,13.95374959,4464.3,4463.3,0.4455]
[1759599641243,13.52524959,4464.3,4463.5,0.4455]
[1759599641582,13.52524959,4464.3,4463.7,0.4455]
[1759599643382,14.00670211,4464.3,4463.7,0.4455]
[1759599643695,18.23670211,4464.3,4464.1,0.001]
[1759599644598,5.56694535,4464.3,4464.1,0.001]
[1759599644894,8.24309283,4464.3,4464.2,0.4465]
[1759599653864,8.24309283,4464.3,4464.2,0.001]
[1759599654689,8.35509283,4464.3,4464.2,0.001]
[1759599657499,8.83663896,4464.3,4464.2,0.001]
[1759599658071,9.26973896,4464.3,4464.2,0.001]
[1759599659199,8.83663896,4464.3,4464.2,0.001]
[1759599659397,14.00779572,4464.3,4464.2,0.001]
[1759599659583,14.44089572,4464.3,4464.2,0.001]
[1759599660276,14.44161774,4464.3,4464.2,0.001]
[1759599660797,14.00851774,4464.3,4464.2,0.001]
[1759599661178,14.00851774,4464.3,4464.2,0.436]
[1759599662096,14.00851774,4464.3,4464.2,0.001]
[1759599667833,14.44161774,4464.3,4464.2,0.001]
[1759599668138,2.24047055,4463.4,4462.7,0.435]
[1759599668310,10.44530166,4463.2,4462.7,0.435]
[1759599668515,10.55730166,4463.2,4462.7,0.435]
[1759599668723,10.55730166,4463.2,4462.9,0.435]
[1759599668924,10.55730166,4463.2,4463.1,0.445]
[1759599668925,5.8211449,4463.2,4463.1,0.445]
[1759599672248,10.99230166,4463.2,4463.1,0.01]
[1759599678682,11.42540166,4463.2,4463.1,1e-08]
[1759599678889,11.4738428,4463.2,4463.1,1e-08]
[1759599679916,11.4738428,4463.2,4463.1,0.00100001]
[1759599681217,8.83068604,4463.2,4463.1,0.45620001]
[1759599681400,8.3491449,4463.2,4463.1,0.45620001]
[1759599685420,8.3491449,4463.2,4463.1,0.00100001]
[1759599685421,9.15165331,4463.2,4463.1,0.00100001]
[1759599690209,13.38165331,4463.2,4463.1,0.00100001]
[1759599691986,13.38174817,4463.2,4463.1,0.00100001]
[1759599695415,13.38174817,4463.2,4462.1,0.01]
[1759599695416,2.87464701,4462.2,4462.1,0.01]
[1759599695589,7.80164701,4462.2,4462.1,0.01]
[1759599695782,12.11453119,4462.2,4462.1,0.01]
[1759599696310,12.20424997,4462.2,4462.1,0.01]
[1759599697489,12.20424997,4462.2,4462.1,0.4657]
[1759599699615,12.65586541,4462.2,4462.1,0.4657]
[1759599700416,8.34298123,4462.2,4462.1,0.4657]
[1759599700921,8.34298123,4462.2,4462.1,0.01]
[1759599701484,8.34298123,4462.2,4462.1,0.4657]
[1759599702813,8.34298123,4462.2,4462.1,0.01]
[1759599703291,12.65586541,4462.2,4462.1,0.01]
[1759599705327,12.76786541,4462.2,4462.1,0.01]
[1759599705848,12.76786541,4462.2,4461.1,1e-08]
[1759599705849,2.87514935,4461.2,4461.1,1e-08]
[1759599705993,9.58803353,4461.2,4461.1,1e-08]
[1759599706193,8.28471379,4461.2,4461.1,0.45570001]
[1759599706648,8.3744525,4461.2,4461.1,0.45570001]
[1759599706844,8.3744525,4461.2,4461.1,1e-08]
[1759599707340,7.89288806,4461.2,4461.1,1e-08]
[1759599707839,7.89288806,4461.2,4461.1,0.45570001]
[1759599708804,12.20577224,4461.2,4461.1,1e-08]
[1759599715840,12.31777224,4461.2,4461.1,1e-08]
[1759599716681,12.31777224,4461.2,4461.1,0.00100001]
[1759599716854,12.31977224,4461.2,4461.1,0.00100001]
[1759599718831,12.75517224,4461.2,4461.1,0.00100001]
[1759599719037,13.23588782,4461.2,4461.1,0.00100001]
[1759599720969,10.27248782,4461.2,4461.1,0.00100001]
[1759599721171,12.80048782,4461.2,4461.1,0.00100001]
[1759599721771,13.23588782,4461.2,4461.1,0.00100001]
[1759599724559,17.46588782,4461.2,4461.1,0.00100001]
[1759599725273,13.23588782,4461.2,4461.1,0.00100001]
[1759599727781,17.001372,4461.2,4461.1,0.00100001]
[1759599727946,2.87565192,4460.2,4460.1,1e-08]
[1759599728145,12.1155361,4460.2,4460.1,1e-08]
[1759599728661,12.5726361,4460.2,4460.1,1e-08]
[1759599729308,13.0080361,4460.2,4460.1,1e-08]
[1759599733491,13.48896093,4460.2,4460.1,1e-08]
[1759599736128,13.48896093,4460.2,4460.1,0.00100001]
[1759599736432,13.05356093,4460.2,4460.1,0.00100001]
[1759599737316,8.74067675,4460.2,4460.1,0.00100001]
[1759599737488,13.05356093,4460.2,4460.1,0.45810001]
[1759599737894,13.16556093,4460.2,4460.1,0.45810001]
[1759599738093,6.32567675,4460.2,4460.1,0.45810001]
[1759599738298,8.85367675,4460.2,4460.1,0.45810001]
[1759599738499,8.37275192,4460.2,4460.1,0.45810001]
[1759599742341,2.81115192,4460.2,4460.1,0.44580001]
[1759599742651,5.33915192,4460.2,4460.1,0.44580001]
[1759599742827,8.37275192,4460.2,4460.1,0.44580001]
[1759599743153,5.97275192,4460.2,4460.1,0.44580001]
[1759599743448,8.37275192,4460.2,4460.1,0.44580001]
[1759599748033,5.84475192,4460.2,4460.1,0.44580001]
[1759599748233,8.37275192,4460.2,4460.1,0.44580001]
[1759599754667,5.27570219,4460.1,4458.1,0.4332]
[1759599754866,0.6336,4459.0,4458.2,0.4332]
[1759599755034,2.24299953,4458.4,4458.2,0.4332]
[1759599755238,2.24299953,4458.4,4456.7,14.861]
[1759599755239,4.64300742,4458.3,4456.8,2.24376015]
[1759599755557,2.24306918,4458.2,4456.9,1.71047602]
[1759599755755,2.24306918,4458.2,4457.0,0.4332]
[1759599755962,2.4,4458.4,4457.1,0.2143676]
[1759599756132,2.4,4458.4,4457.1,0.1643676]
[1759599756452,2.4,4458.4,4457.2,0.4332]
[1759599756658,4.64298413,4458.4,4457.2,0.4332]
[1759599757258,0.01,4457.9,4457.2,0.4232]
[1759599757447,0.01,4457.9,4457.3,0.0224351]
[1759599757853,0.01,4457.9,4457.3,0.22660523]
[1759599758048,0.01,4457.9,4457.4,0.0224346]
[1759599758281,0.46492208,4457.9,4454.9,0.67334399]
[1759599758435,0.6336,4457.5,4455.6,0.0008]
[1759599758630,0.6336,4457.2,4454.8,0.2331]
[1759599758937,2.24385715,4456.7,4454.9,19.429029]
[1759599759138,2.24385715,4456.7,4455.0,4.697317]
[1759599759477,2.24390737,4456.6,4455.1,0.4332]
[1759599759676,0.67358437,4456.6,4455.2,3.26452247]
[1759599759860,0.67358437,4456.6,4455.3,0.4332]
[1759599760409,3.0336,4456.5,4455.4,0.45564467]
[1759599760610,0.67358437,4456.6,4455.4,0.4332]
[1759599760791,3.07358437,4456.6,4455.4,0.4332]
[1759599761960,5.31745216,4456.6,4455.4,0.4332]
[1759599762161,3.07358437,4456.6,4455.4,0.4332]
[1759599762496,2.4,4456.5,4455.4,0.4332]
[1759599762710,4.928,4456.5,4455.3,2.528]
[1759599762905,7.17191392,4456.5,4455.3,2.528]
[1759599763121,4.928,4456.5,4455.3,2.528]
[1759599763277,7.17191419,4456.5,4455.3,2.528]
[1759599763478,4.928,4456.5,4455.3,2.528]
[1759599764106,4.928,4456.5,4455.4,0.02244467]
[1759599764306,4.928,4456.5,4455.5,0.25504447]
[1759599764613,0.112,4455.9,4455.6,0.02244366]
[1759599764808,0.112,4455.9,4455.7,0.4332]
[1759599765008,0.112,4455.9,4455.8,0.45564265]
[1759599765384,0.67363277,4456.3,4455.8,0.45564265]
[1759599765590,0.112,4456.2,4455.8,0.45564265]
[1759599766574,2.4,4457.1,4455.9,0.2811985]
[1759599766934,0.112,4456.6,4456.0,0.45564165]
[1759599767274,0.67353598,4456.9,4453.5,0.4332]
[1759599767474,0.6336,4456.2,4454.5,0.4332]
[1759599767717,5.6539599,4456.5,4454.7,0.4332]
[1759599767718,2.24440091,4455.6,4454.7,0.4332]
[1759599767922,2.24442245,4455.5,4454.7,0.4332]
[1759599768075,2.4,4455.4,4454.7,0.4332]
[1759599768276,2.24449211,4455.4,4454.7,0.4332]
[1759599768511,2.4,4455.4,4454.7,0.4332]
[1759599768714,2.67761978,4455.5,4454.7,0.4332]
[1759599768715,0.4332,4455.5,4454.7,0.4332]
[1759599768877,0.4332,4455.5,4454.8,0.02244769]
[1759599769076,0.4332,4455.5,4454.7,0.4332]
[1759599770205,2.6776201,4455.5,4454.7,0.4332]
[1759599770515,2.6776201,4455.5,4454.8,0.02244769]
[1759599770516,0.4332,4455.5,4454.8,0.02244769]
[1759599770717,2.528,4455.9,4455.2,0.4596]
[1759599770886,2.24433258,4455.7,4455.2,0.4596]
[1759599771485,2.24437126,4455.6,4455.2,0.4596]
[1759599772732,0.67369328,4455.8,4454.5,2.439]
[1759599772936,3.07369328,4455.8,4455.3,0.4596]
[1759599773294,2.91797373,4455.8,4455.3,0.4596]
[1759599776346,2.91797373,4455.8,4455.1,0.011]
[1759599776632,2.24432946,4455.7,4455.1,0.011]
[1759599777226,2.91797157,4455.8,4455.1,0.011]
[1759599777527,0.112,4455.7,4455.1,0.123]
[1759599777828,0.112,4455.4,4455.1,0.011]
[1759599778138,2.24451776,4455.3,4455.1,0.011]
[1759599778295,0.5623,4455.4,4455.1,0.011]
[1759599778495,2.24456814,4455.2,4455.1,0.011]
[1759599779320,5.22386814,4455.2,4455.1,1e-08]
[1759599779499,8.08346814,4455.2,4455.1,1e-08]
[1759599779706,8.82906814,4455.2,4455.1,1e-08]
[1759599780811,6.30006814,4455.2,4455.1,1e-08]
[1759599781012,8.82906814,4455.2,4455.1,1e-08]
[1759599787194,9.30799468,4455.2,4455.1,1e-08]
[1759599791497,6.77899468,4455.2,4455.1,1e-08]
[1759599791697,9.30899468,4455.2,4455.1,1e-08]
[1759599794765,6.32869468,4455.2,4455.1,1e-08]
[1759599795063,8.85869468,4455.2,4455.1,1e-08]
[1759599795952,8.37976814,4455.2,4455.1,1e-08]
[1759599797032,5.84976814,4455.2,4455.1,1e-08]
[1759599797241,8.37976814,4455.2,4455.1,0.45960001]
[1759599797538,7.92016814,4455.2,4455.1,0.45960001]
[1759599797862,7.92016814,4455.2,4455.1,1e-08]
[1759599800379,5.39016814,4455.2,4455.1,1e-08]
[1759599800669,7.92016814,4455.2,4455.1,1e-08]
[1759599801058,5.39016814,4455.2,4455.1,1e-08]
[1759599801258,7.92016814,4455.2,4455.1,1e-08]
[1759599801855,5.39016814,4455.2,4455.1,1e-08]
[1759599802053,7.91916814,4455.2,4455.1,1e-08]
[1759599802461,5.39016814,4455.2,4455.1,1e-08]
[1759599802637,7.91916814,4455.2,4455.1,1e-08]
[1759599803670,5.39016814,4455.2,4455.1,1e-08]
[1759599803863,7.91916814,4455.2,4455.1,0.43350001]
[1759599805826,0.112,4455.2,4455.1,1e-08]
[1759599806001,0.112,4455.2,4455.1,0.43350001]
[1759599806183,0.112,4455.4,4455.1,0.43350001]
[1759599808793,0.112,4455.4,4455.2,0.4335]
[1759599809192,0.112,4455.4,4455.3,0.4335]
[1759599810507,0.114,4455.4,4455.3,0.4335]
[1759599812504,0.002,4455.4,4455.3,0.4335]
[1759599814386,0.002,4455.4,4455.3,0.45594517]
[1759599815000,0.002,4455.4,4455.3,0.73720242]
[1759599816881,0.002,4455.4,4455.3,2.98172018]
[1759599817403,0.002,4455.4,4455.3,17.48172018]
[1759599817609,0.002,4455.4,4455.3,17.45927501]
[1759599820044,0.002,4455.4,4455.3,28.61714301]
[1759599822673,0.002,4455.4,4455.3,15.21475725]
[1759599822813,0.002,4455.4,4455.3,19.49351101]
[1759599823014,0.002,4455.4,4455.3,17.47987501]
[1759599823210,0.002,4455.4,4455.3,20.00987501]
[1759599823956,0.002,4455.4,4455.3,22.82813601]
[1759599825365,0.002,4455.4,4455.3,35.14737401]
[1759599825540,0.002,4455.4,4455.3,34.72688301]
[1759599826062,0.002,4455.4,4455.3,32.30141501]
[1759599826681,0.002,4455.4,4455.3,25.65809701]
[1759599827183,0.002,4455.4,4455.3,0.28125725]
[1759599827352,0.4758,4455.4,4455.1,1e-08]
[1759599828487,2.72027341,4455.4,4455.1,1e-08]
[1759599829775,0.4758,4455.4,4455.1,1e-08]
[1759599832821,0.4688,4455.3,4455.1,1e-08]
[1759599833173,0.4688,4455.2,4455.1,1e-08]
[1759599835102,0.002,4455.4,4455.1,0.02244619]
[1759599835303,0.4688,4455.3,4455.1,0.02244619]
[1759599836909,0.002,4455.4,4455.1,0.02244619]
[1759599837096,0.4688,4455.3,4455.1,0.02244619]
[1759599838417,0.002,4455.4,4455.1,0.02244619]
[1759599840319,0.002,4455.4,4455.1,1e-08]
[1759599840483,0.002,4455.4,4455.2,0.4624]
[1759599840677,0.002,4455.4,4455.3,0.02244517]
[1759599841109,0.002,4455.4,4455.2,0.4624]
[1759599841292,0.002,4455.4,4455.3,0.48484517]
[1759599841486,0.002,4455.4,4455.3,1.06396703]
[1759599842288,0.002,4455.4,4455.3,0.99036703]
[1759599842597,0.002,4455.4,4455.3,0.112]
[1759599842799,0.002,4455.4,4455.3,0.02244517]
[1759599843022,0.002,4455.4,4455.3,0.112]
[1759599843226,0.002,4455.4,4455.3,2.35651776]
[1759599843598,0.002,4455.4,4455.3,2.37896293]
[1759599843803,0.002,4455.4,4455.3,3.01662082]
[1759599844391,0.002,4455.4,4455.3,3.47902082]
[1759599847727,0.002,4455.4,4455.3,20.50802082]
[1759599848022,0.002,4455.4,4455.3,20.48557565]
[1759599849827,0.002,4455.4,4455.3,41.84604665]
[1759599849988,0.002,4455.4,4455.3,42.54671265]
[1759599851041,0.002,4455.4,4455.3,37.62039365]
[1759599851794,0.002,4455.4,4455.3,37.27930965]
[1759599851994,0.002,4455.4,4455.3,37.13857265]
[1759599853540,0.002,4455.4,4455.3,28.96107665]
[1759599853943,0.002,4455.4,4455.3,30.42145965]
[1759599854097,0.002,4455.4,4455.3,29.22217765]
[1759599855012,0.002,4455.4,4455.3,29.03234265]
[1759599856025,0.002,4455.4,4455.3,30.87071065]
[1759599856604,0.002,4455.4,4455.3,30.54067165]
[1759599856814,0.002,4455.4,4455.3,30.26747665]
[1759599857922,0.002,4455.4,4455.3,30.47288765]
[1759599858106,0.002,4455.4,4455.3,30.26757665]
[1759599858946,0.002,4455.4,4455.3,22.08275131]
[1759599859152,0.002,4455.4,4455.3,20.48557565]
[1759599859335,0.002,4455.4,4455.3,43.26847465]
[1759599859819,0.002,4455.4,4455.3,42.92292265]
[1759599860019,0.002,4455.4,4455.3,42.75549465]
[1759599860238,0.002,4455.4,4455.3,40.08201765]
[1759599860553,0.002,4455.4,4455.3,35.38003665]
[1759599861076,0.002,4455.4,4455.3,30.48267665]
[1759599861950,0.002,4455.4,4455.3,23.48265965]
[1759599862161,0.002,4455.4,4455.3,15.24965789]
[1759599862453,0.4413,4455.4,4455.3,17.141]
[1759599864153,0.4413,4455.4,4455.3,2.641]
[1759599864867,0.4413,4455.4,4455.3,2.529]
[1759599865224,0.4413,4455.4,4455.3,2.53]
[1759599872380,0.002,4455.4,4455.3,2.53]
[1759599872987,0.4639,4455.4,4455.3,2.55244517]
[1759599873363,0.002,4455.4,4455.3,4.48215279]
[1759599873572,0.002,4455.4,4455.3,4.45970762]
[1759599873883,0.002,4455.4,4455.3,4.48215279]
[1759599874682,0.002,4455.4,4455.3,4.57170762]
[1759599878780,0.002,4455.4,4455.3,6.81622538]
[1759599879716,0.002,4455.4,4455.3,4.57170762]
[1759599880133,0.01,4457.9,4455.9,2.24421553]
[1759599880283,0.01,4457.9,4457.8,2.243259]
[1759599880492,0.01,4457.9,4457.8,18.15879305]
[1759599880798,0.01,4457.9,4457.8,17.029]
[1759599880994,0.01,4457.9,4456.9,2.4]
[1759599880995,0.01,4457.9,4456.5,0.4649]
[1759599881196,0.4619,4457.8,4457.7,1.60860497]
[1759599881419,0.4619,4457.8,4457.7,2.73872293]
[1759599882118,0.4619,4457.8,4457.7,2.73847826]
[1759599883223,0.4619,4457.8,4457.7,3.73402457]
[1759599884217,0.4619,4457.8,4457.7,2.529]
[1759599885322,0.4619,4457.8,4457.7,2.528]
[1759599885817,0.4619,4457.8,4457.4,1.20502457]
[1759599886022,0.01,4457.9,4457.7,0.80268376]
[1759599886185,0.01,4457.9,4457.7,2.528]
[1759599886586,0.4619,4457.8,4457.7,2.528]
[1759599887742,0.4619,4457.8,4457.7,3.12973324]
[1759599889315,0.4619,4457.8,4457.7,0.60173324]
[1759599891124,0.4619,4457.8,4457.6,3.12973324]
[1759599891325,0.4717,4457.7,4457.6,3.12973324]
[1759599895731,0.4717,4457.7,4457.6,3.12926592]
[1759599897970,0.4717,4457.7,4457.6,2.528]
[1759599900275,0.4717,4457.7,4457.6,2.7369089]
[1759599901380,0.4717,4457.7,4457.6,2.528]
[1759599901967,0.002,4457.8,4457.6,2.528]
[1759599902181,0.4737,4457.8,4457.7,0.60170517]
[1759599902487,0.4737,4457.8,4457.7,0.81073925]
[1759599904178,0.4737,4457.8,4457.7,0.20903408]
[1759599904376,0.4737,4457.8,4457.6,2.528]
[1759599905685,0.002,4457.8,4457.7,0.02243309]
[1759599907247,0.002,4457.8,4457.7,0.82511685]
[1759599907654,0.002,4457.8,4457.7,0.80268376]
[1759599907887,0.4737,4457.8,4457.7,0.80268376]
[1759599908183,0.4737,4457.8,4457.6,2.528]
[1759599908948,0.4737,4457.8,4457.7,0.02243309]
[1759599909153,0.002,4457.8,4457.7,0.02243309]
[1759599911291,0.002,4457.8,4457.7,2.98008572]
[1759599911478,0.002,4457.8,4457.7,17.48008572]
[1759599911658,0.002,4457.8,4457.7,17.45765263]
[1759599917523,0.002,4457.8,4457.7,32.62881063]
[1759599917714,0.002,4457.8,4457.7,32.74081063]
[1759599919305,0.002,4457.8,4457.7,17.39404331]
[1759599920212,0.002,4457.8,4457.7,19.63735263]
[1759599920817,0.002,4457.8,4457.7,2.89404331]
[1759599921229,0.002,4457.8,4457.7,0.36704331]
[1759599921416,0.002,4457.8,4457.7,2.89404331]
[1759599922200,0.002,4457.8,4457.7,5.13735263]
[1759599922831,0.002,4457.8,4457.7,2.89404331]
[1759599923895,0.002,4457.8,4457.7,5.13735263]
[1759599924937,0.002,4457.8,4457.7,19.63735263]
[1759599925712,0.002,4457.8,4457.7,22.21913463]
[1759599925919,0.002,4457.8,4457.7,21.92074063]
[1759599926531,0.002,4457.8,4457.7,22.36114063]
[1759599928001,0.002,4457.8,4457.7,7.86114063]
[1759599928423,0.002,4457.8,4457.7,22.36114063]
[1759599937613,0.002,4457.8,4457.7,29.46665663]
[1759599938625,0.002,4457.8,4457.7,34.55984163]
[1759599938824,0.002,4457.8,4457.7,31.16198463]